fUST/lending_fUST_20240721
["ID","MTS","AMOUNT","RATE_DAILY","PERIOD"]
[332827031,1721555473033,-500.0,0.0001452,2]
[332827032,1721555473043,-868.2,0.0001452,2]
[332827033,1721555473053,-500.0,0.0001452,2]
[332827034,1721555473063,-500.0,0.0001452,2]
[332827035,1721555473075,-500.0,0.0001452,2]
[332827036,1721555473084,-500.0,0.0001452,2]
[332827037,1721555473095,-500.0,0.0001452,2]
[332827038,1721555473108,-500.0,0.0001452,2]
[332827039,1721555473162,-500.0,0.0001452,2]
[332827040,1721555473171,-500.0,0.0001452,2]
[332827041,1721555473180,-613.36,0.0001452,2]
[332827042,1721555473189,-500.0,0.0001452,2]
[332827043,1721555473198,-500.0,0.0001452,2]
[332827044,1721555473207,-500.0,0.0001452,2]
[332827045,1721555473217,-500.0,0.0001452,2]
[332827046,1721555473226,-500.0,0.0001452,2]
[332827047,1721555473235,-609.08,0.0001452,2]
[332827048,1721555473247,-500.0,0.0001452,2]
[332827049,1721555473257,-500.0,0.0001452,2]
[332827050,1721555473266,-500.0,0.0001452,2]
[332827051,1721555473275,-540.28551138,0.0001452,2]
[332827052,1721555473284,-500.0,0.0001452,2]
[332827053,1721555473293,-500.0,0.0001452,2]
[332827054,1721555473302,-500.0,0.0001452,2]
[332827055,1721555473312,-500.0,0.0001452,2]
[332827056,1721555473320,-500.0,0.0001452,2]
[332827057,1721555473330,-500.0,0.0001452,2]
[332827058,1721555473339,-500.0,0.0001452,2]
[332827059,1721555473349,-500.0,0.0001452,2]
[332827060,1721555473358,-500.0,0.0001452,2]
[332827061,1721555473368,-532.51940764,0.0001452,2]
[332827062,1721555473377,-500.0,0.0001452,2]
[332827063,1721555473386,-1324.26,0.0001452,2]
[332827064,1721555473395,-500.0,0.0001452,2]
[332827065,1721555473405,-889.63,0.0001452,2]
[332827066,1721555473414,-500.0,0.0001452,2]
[332827067,1721555473423,-500.0,0.0001452,2]
[332827068,1721555473432,-500.0,0.0001452,2]
[332827069,1721555473441,-725.84,0.0001452,2]
[332827070,1721555473450,-500.0,0.0001452,2]
[332827071,1721555473460,-2453.11,0.0001452,2]
[332827072,1721555473468,-2502.19,0.0001452,2]
[332827073,1721555473478,-500.0,0.0001452,2]
[332827074,1721555473487,-607.0,0.0001452,2]
[332827075,1721555473496,-528.97,0.0001452,2]
[332827076,1721555473506,-658.1,0.0001452,2]
[332827077,1721555473515,-1073.15,0.0001452,2]
[332827078,1721555473524,-500.0,0.0001452,2]
[332827079,1721555473534,-755.32,0.0001452,2]
[332827080,1721555473543,-500.0,0.0001452,2]
[332827081,1721555473553,-500.0,0.0001452,2]
[332827082,1721555473562,-500.0,0.0001452,2]
[332827083,1721555473571,-500.0,0.0001452,2]
[332827084,1721555473580,-500.0,0.0001452,2]
[332827085,1721555473589,-733.92,0.0001452,2]
[332827086,1721555473598,-579.38986643,0.0001452,2]
[332827087,1721555473610,-500.0,0.0001452,2]
[332827088,1721555473619,-596.56,0.0001452,2]
[332827089,1721555473629,-607.1,0.0001452,2]
[332827090,1721555473638,-554.81,0.0001452,2]
[332827091,1721555473647,-502.93396417,0.0001452,2]
[332827092,1721555473656,-504.88047884,0.0001452,2]
[332827093,1721555473665,-500.0,0.0001452,2]
[332827094,1721555473675,-1820.2,0.0001452,2]
[332827095,1721555473684,-1181.32,0.0001452,2]
[332827096,1721555473693,-1714.34,0.0001452,2]
[332827097,1721555473703,-500.0,0.0001452,2]
[332827098,1721555473714,-500.0,0.0001452,2]
[332827099,1721555473723,-513.01,0.0001452,2]
[332827100,1721555473732,-662.59,0.0001452,2]
[332827101,1721555473742,-500.0,0.0001452,2]
[332827102,1721555473751,-500.0,0.0001452,2]
[332827103,1721555473761,-500.0,0.0001452,2]
[332827104,1721555473770,-2516.03,0.0001452,2]
[332827105,1721555473779,-643.79,0.0001452,2]
[332827106,1721555473789,-554.61,0.0001452,2]
[332827107,1721555473799,-731.29,0.0001452,2]
[332827108,1721555473808,-500.0,0.0001452,2]
[332827109,1721555473818,-500.0,0.0001452,2]
[332827110,1721555473827,-1752.98,0.0001452,2]
[332827111,1721555473836,-814.53,0.0001452,2]
[332827112,1721555473845,-500.0,0.0001452,2]
[332827113,1721555473854,-500.0,0.0001452,2]
[332827114,1721555473864,-500.0,0.0001452,2]
[332827115,1721555473873,-500.0,0.0001452,2]
[332827116,1721555473882,-535.79,0.0001452,2]
[332827117,1721555473892,-512.25898249,0.0001452,2]
[332827118,1721555473900,-779.85,0.0001452,2]
[332827119,1721555473910,-500.0,0.0001452,2]
[332827120,1721555473919,-829.85,0.0001452,2]
[332827121,1721555473928,-827.08,0.0001452,2]
[332827122,1721555473937,-1004.92,0.0001452,2]
[332827123,1721555473946,-574.58,0.0001452,2]
[332827124,1721555473955,-500.0,0.0001452,2]
[332827125,1721555473964,-500.0,0.0001452,2]
[332827126,1721555473974,-500.0,0.0001452,2]
[332827127,1721555473983,-581.30874109,0.0001452,2]
[332827128,1721555473992,-500.0,0.0001452,2]
[332827129,1721555474001,-545.06,0.0001452,2]
[332827130,1721555474010,-500.0,0.0001452,2]
[332827131,1721555474022,-1404.46,0.0001452,2]
[332827132,1721555474032,-503.95767655,0.0001452,2]
[332827133,1721555474041,-500.0,0.0001452,2]
[332827134,1721555474050,-833.83,0.0001452,2]
[332827135,1721555474059,-1209.24,0.0001452,2]
[332827136,1721555474068,-1628.16,0.0001452,2]
[332827137,1721555474077,-661.79,0.0001452,2]
[332827138,1721555474086,-500.0,0.0001452,2]
[332827139,1721555474096,-500.0,0.0001452,2]
[332827140,1721555474105,-3665.72,0.0001452,2]
[332827141,1721555474115,-504.61416749,0.0001452,2]
[332827142,1721555474124,-500.0,0.0001452,2]
[332827143,1721555474133,-500.0,0.0001452,2]
[332827144,1721555474142,-1370.23,0.0001452,2]
[332827145,1721555474151,-500.0,0.0001452,2]
[332827146,1721555474159,-1643.03,0.0001452,2]
[332827147,1721555474168,-500.0,0.0001452,2]
[332827148,1721555474177,-746.0,0.0001452,2]
[332827149,1721555474187,-519.0,0.0001452,2]
[332827150,1721555474195,-500.0,0.0001452,2]
[332827151,1721555474206,-500.0,0.0001452,2]
[332827152,1721555474216,-1302.9,0.0001452,2]
[332827153,1721555474225,-691.51,0.0001452,2]
[332827154,1721555474234,-500.0,0.0001452,2]
[332827155,1721555474244,-1951.57,0.0001452,2]
[332827156,1721555474254,-500.0,0.0001452,2]
[332827157,1721555474265,-851.67,0.0001452,2]
[332827158,1721555474274,-1638.21,0.0001452,2]
[332827159,1721555474285,-500.0,0.0001452,2]
[332827160,1721555474296,-1766.14,0.0001452,2]
[332827161,1721555474305,-430.85148218,0.0001452,2]
[332827162,1721555474315,-500.0,0.0001452,2]
[332827163,1721555474324,-500.0,0.0001452,2]
[332827164,1721555474335,-500.0,0.0001452,2]
[332827165,1721555474344,-502.99870871,0.0001452,2]
[332827166,1721555474356,-500.0,0.0001452,2]
[332827167,1721555474366,-891.54,0.0001452,2]
[332827168,1721555474377,-500.0,0.0001452,2]
[332827169,1721555474386,-850.08,0.0001452,2]
[332827170,1721555474395,-355.81217664,0.0001452,2]
[332827171,1721555474405,-607.9,0.0001452,2]
[332827172,1721555474414,-500.0,0.0001452,2]
[332827173,1721555474423,-2629.93,0.0001452,2]
[332827174,1721555474433,-3809.04,0.0001452,2]
[332827175,1721555474445,-500.0,0.0001452,2]
[332827176,1721555474456,-500.0,0.0001452,2]
[332827177,1721555474466,-725.31,0.0001452,2]
[332827178,1721555474476,-1657.69,0.0001452,2]
[332827179,1721555474486,-634.57,0.0001452,2]
[332827180,1721555474495,-845.97,0.0001452,2]
[332827181,1721555474505,-500.0,0.0001452,2]
[332827182,1721555474514,-500.0,0.0001452,2]
[332827183,1721555474524,-557.31681717,0.0001452,2]
[332827184,1721555474535,-500.0,0.0001452,2]
[332827185,1721555474547,-508.70054299,0.0001452,2]
[332827186,1721555474556,-783.25,0.0001452,2]
[332827187,1721555474567,-500.0,0.0001452,2]
[332827188,1721555474579,-500.0,0.0001452,2]
[332827189,1721555474591,-511.98872029,0.0001452,2]
[332827190,1721555474602,-643.52,0.0001452,2]
[332827191,1721555474611,-500.0,0.0001452,2]
[332827192,1721555474621,-800.17,0.0001452,2]
[332827193,1721555474630,-1329.69,0.0001452,2]
[332827194,1721555474639,-653.3,0.0001452,2]
[332827195,1721555474649,-1574.12,0.0001452,2]
[332827196,1721555474659,-500.0,0.0001452,2]
[332827197,1721555474669,-500.0,0.0001452,2]
[332827198,1721555474680,-500.0,0.0001452,2]
[332827199,1721555474689,-500.0,0.0001452,2]
[332827200,1721555474699,-500.0,0.0001452,2]
[332827201,1721555474708,-692.3,0.0001452,2]
[332827202,1721555474717,-2560.81,0.0001452,2]
[332827203,1721555474727,-1699.44,0.0001452,2]
[332827204,1721555474736,-502.50530035,0.0001452,2]
[332827205,1721555474746,-500.0,0.0001452,2]
[332827206,1721555474755,-500.0,0.0001452,2]
[332827207,1721555474765,-945.87,0.0001452,2]
[332827208,1721555474775,-803.31,0.0001452,2]
[332827209,1721555474786,-4108.8,0.0001452,2]
[332827210,1721555474796,-500.0,0.0001452,2]
[332827211,1721555474805,-2337.32,0.0001452,2]
[332827212,1721555474815,-500.0,0.0001452,2]
[332827213,1721555474824,-644.39030274,0.0001452,2]
[332827214,1721555474834,-567.17,0.0001452,2]
[332827215,1721555474843,-844.85,0.0001452,2]
[332827216,1721555474853,-588.49,0.0001452,2]
[332827217,1721555474862,-500.0,0.0001452,2]
[332827218,1721555474872,-500.0,0.0001452,2]
[332827219,1721555474882,-503.79320357,0.0001452,2]
[332827220,1721555474892,-500.0,0.0001452,2]
[332827221,1721555474902,-816.43,0.0001452,2]
[332827222,1721555474912,-6949.94,0.0001452,2]
[332827223,1721555474923,-500.0,0.0001452,2]
[332827224,1721555474933,-372.13073557,0.0001452,2]
[332827225,1721555474943,-2185.03,0.0001452,2]
[332827226,1721555474955,-3211.54,0.0001452,2]
[332827227,1721555474966,-944.31,0.0001452,2]
[332827228,1721555474976,-1116.24,0.0001452,2]
[332827229,1721555474988,-500.0,0.0001452,2]
[332827230,1721555474998,-500.0,0.0001452,2]
[332827231,1721555475008,-1149.02,0.0001452,2]
[332827232,1721555475018,-500.0,0.0001452,2]
[332827233,1721555475032,-583.31,0.0001452,2]
[332827234,1721555475042,-500.0,0.0001452,2]
[332827235,1721555475053,-632.18,0.0001452,2]
[332827236,1721555475064,-500.0,0.0001452,2]
[332827237,1721555475075,-5623.74,0.0001452,2]
[332827238,1721555475086,-2388.12,0.0001452,2]
[332827239,1721555475098,-1458.49,0.0001452,2]
[332827240,1721555475111,-500.0,0.0001452,2]
[332827241,1721555475123,-1024.76,0.0001452,2]
[332827242,1721555475133,-500.0,0.0001452,2]
[332827243,1721555475142,-957.16,0.0001452,2]
[332827244,1721555475152,-500.0,0.0001452,2]
[332827245,1721555475162,-500.0,0.0001452,2]
[332827246,1721555475173,-973.9,0.0001452,2]
[332827247,1721555475183,-500.0,0.0001452,2]
[332827248,1721555475194,-632.5,0.0001452,2]
[332827249,1721555475206,-265.0,0.0001452,2]
[332827250,1721555475218,-2617.63,0.0001452,2]
[332827251,1721555475228,-500.0,0.0001452,2]
[332827252,1721555475239,-500.0,0.0001452,2]
[332827253,1721555475250,-500.0,0.0001452,2]
[332827254,1721555475260,-500.0,0.0001452,2]
[332827255,1721555475271,-500.0,0.0001452,2]
[332827256,1721555475281,-500.0,0.0001452,2]
[332827257,1721555475291,-2068.81,0.0001452,2]
[332827258,1721555475301,-695.53,0.0001452,2]
[332827259,1721555475312,-16179.83,0.0001452,2]
[332827260,1721555475322,-1724.01,0.0001452,2]
[332827261,1721555475332,-500.0,0.0001452,2]
[332827262,1721555475342,-500.0,0.0001452,2]
[332827263,1721555475352,-500.0,0.0001452,2]
[332827264,1721555475363,-1904.33,0.0001452,2]
[332827265,1721555475373,-500.0,0.0001452,2]
[332827266,1721555475384,-3028.5,0.0001452,2]
[332827267,1721555475394,-500.0,0.0001452,2]
[332827268,1721555475404,-5029.23,0.0001452,2]
[332827269,1721555475414,-2749.41,0.0001452,2]
[332827270,1721555475425,-500.0,0.0001452,2]
[332827271,1721555475435,-707.38,0.0001452,2]
[332827272,1721555475445,-1511.47,0.0001452,2]
[332827273,1721555475455,-516.24,0.0001452,2]
[332827274,1721555475465,-541.52978121,0.0001452,2]
[332827275,1721555475475,-500.0,0.0001452,2]
[332827276,1721555475484,-500.0,0.0001452,2]
[332827277,1721555475494,-500.0,0.0001452,2]
[332827278,1721555475504,-500.0,0.0001452,2]
[332827279,1721555475515,-310.56445264,0.0001452,2]
[332827280,1721555475525,-500.0,0.0001452,2]
[332827281,1721555475534,-500.0,0.0001452,2]
[332827282,1721555475545,-777.05,0.0001452,2]
[332827283,1721555475562,-500.0,0.0001452,2]
[332827284,1721555475572,-517.8,0.0001452,2]
[332827285,1721555475585,-500.0,0.0001452,2]
[332827286,1721555475596,-6758.6,0.0001452,2]
[332827287,1721555475607,-2876.98,0.0001452,2]
[332827288,1721555475617,-531.23,0.0001452,2]
[332827289,1721555475627,-500.0,0.0001452,2]
[332827290,1721555475638,-4427.76,0.0001452,2]
[332827291,1721555475649,-2068.27,0.0001452,2]
[332827292,1721555475660,-956.1,0.0001452,2]
[332827293,1721555475670,-10406.05,0.0001452,2]
[332827294,1721555475680,-500.0,0.0001452,2]
[332827295,1721555475690,-526.22042749,0.0001452,2]
[332827296,1721555475701,-500.0,0.0001452,2]
[332827297,1721555475712,-500.0,0.0001452,2]
[332827298,1721555475722,-223.17820515,0.0001452,2]
[332827303,1721555873834,5038.32700114,0.00025,120]
[332827362,1721556638465,-300.0,9.898e-05,2]
[332827363,1721556638476,-300.0,9.998e-05,2]
[332827364,1721556638487,-341.63558766,9.999e-05,2]
[332827365,1721556638496,-603.38875081,9.999e-05,2]
[332827366,1721556638506,-162.87421769,9.999e-05,2]
[332827367,1721556638517,-224.09319672,9.999e-05,2]
[332827368,1721556638527,-663.44744723,9.999e-05,2]
[332827369,1721556638539,-980.82290703,9.999e-05,2]
[332827370,1721556638549,-239.46665411,9.999e-05,2]
[332827371,1721556638562,-180.26214213,9.999e-05,2]
[332827372,1721556638574,-910.7764823,9.999e-05,2]
[332827373,1721556638584,-567.88989652,9.999e-05,2]
[332827374,1721556638594,-154.79103211,9.999e-05,2]
[332827375,1721556638606,-209.61899477,9.999e-05,2]
[332827376,1721556638615,-319.34367752,9.999e-05,2]
[332827377,1721556638624,-156.54596423,9.999e-05,2]
[332827378,1721556638634,-778.7273512,9.999e-05,2]
[332827379,1721556638645,-154.79103211,9.999e-05,2]
[332827380,1721556638656,-154.79103211,9.999e-05,2]
[332827381,1721556638668,-208.52011681,9.999e-05,2]
[332827382,1721556638679,-533.28027744,9.999e-05,2]
[332827383,1721556638689,-805.24831132,9.999e-05,2]
[332827384,1721556638699,-156.62960029,9.999e-05,2]
[332827385,1721556638712,-154.89472297,9.999e-05,2]
[332827386,1721556638723,-159.9761619,9.999e-05,2]
[332827387,1721556638733,-167.70698088,9.999e-05,2]
[332827388,1721556638744,-154.79103211,9.999e-05,2]
[332827389,1721556638755,-518.96291688,9.999e-05,2]
[332827390,1721556638765,-240.51585871,9.999e-05,2]
[332827391,1721556638777,-24900.0,0.00011106,2]
[332827393,1721556638786,-175.000001,0.0001115,2]
[332827395,1721556638796,-175.000001,0.0001144,2]
[332827396,1721556638805,-175.000001,0.00011731,2]
[332827397,1721556638817,-1128.96566179,0.000129,2]
[332827398,1721556638826,-1128.96566179,0.000129,2]
[332827400,1721556638836,-150.0,0.000131,2]
[332827401,1721556638845,-150.0,0.000132,2]
[332827403,1721556638855,-150.0,0.000133,2]
[332827405,1721556638864,-150.0,0.000134,2]
[332827407,1721556638873,-150.0,0.000135,2]
[332827408,1721556638883,-1303.78255274,0.00013598,2]
[332827410,1721556638893,-150.0,0.000136,2]
[332827411,1721556638902,-29981.4406855,0.00013678,2]
[332827412,1721556638912,-44972.1610283,0.00013688,2]
[332827413,1721556638922,-500.0,0.00013698,2]
[332827414,1721556638931,-500.0,0.00013698,2]
[332827415,1721556638941,-417.5,0.00013698,2]
[332827416,1721556638950,-500.0,0.00013698,2]
[332827417,1721556638959,-500.0,0.00013698,2]
[332827418,1721556638968,-500.0,0.00013698,2]
[332827420,1721556638977,-424.52037373,0.00013698,2]
[332827421,1721556638987,-500.0,0.00013698,2]
[332827423,1721556638996,-500.0,0.00013698,2]
[332827424,1721556639006,-500.0,0.00013698,2]
[332827426,1721556639015,-374.46462958,0.00013698,2]
[332827428,1721556639024,-500.0,0.00013698,2]
[332827430,1721556639033,-172.5,0.00013698,2]
[332827432,1721556639043,-500.0,0.00013698,2]
[332827434,1721556639052,-500.0,0.00013698,2]
[332827436,1721556639065,-500.0,0.00013698,2]
[332827438,1721556639077,-500.0,0.00013698,2]
[332827440,1721556639087,-500.0,0.00013698,2]
[332827442,1721556639097,-500.0,0.00013698,2]
[332827444,1721556639107,-500.0,0.00013698,2]
[332827446,1721556639119,-500.0,0.00013698,2]
[332827448,1721556639128,-619.13405739,0.00013698,2]
[332827450,1721556639138,-500.0,0.00013698,2]
[332827452,1721556639148,-500.0,0.00013698,2]
[332827454,1721556639163,-500.0,0.00013698,2]
[332827456,1721556639172,-300.0,0.00013698,2]
[332827458,1721556639182,-500.0,0.00013698,2]
[332827460,1721556639191,-500.0,0.00013698,2]
[332827462,1721556639200,-500.0,0.00013698,2]
[332827463,1721556639210,-500.0,0.00013698,2]
[332827464,1721556639219,-500.0,0.00013698,2]
[332827466,1721556639228,-500.0,0.00013698,2]
[332827468,1721556639237,-500.0,0.00013698,2]
[332827469,1721556639246,-500.0,0.00013698,2]
[332827470,1721556639255,-500.0,0.00013698,2]
[332827471,1721556639264,-500.0,0.00013698,2]
[332827472,1721556639275,-500.0,0.00013698,2]
[332827473,1721556639285,-500.0,0.00013698,2]
[332827474,1721556639294,-500.0,0.00013698,2]
[332827475,1721556639303,-500.0,0.00013698,2]
[332827476,1721556639312,-500.0,0.00013698,2]
[332827477,1721556639322,-499.05535545,0.00013698,2]
[332827478,1721556639331,-500.0,0.00013698,2]
[332827479,1721556639341,-500.0,0.00013698,2]
[332827480,1721556639350,-500.0,0.00013698,2]
[332827481,1721556639359,-500.0,0.00013698,2]
[332827482,1721556639368,-500.0,0.00013698,2]
[332827483,1721556639377,-500.0,0.00013698,2]
[332827484,1721556639387,-500.0,0.00013698,2]
[332827485,1721556639396,-159.91876603,0.00013698,2]
[332827486,1721556639406,-500.0,0.00013698,2]
[332827487,1721556639415,-500.0,0.00013698,2]
[332827488,1721556639424,-500.0,0.00013698,2]
[332827489,1721556639432,-12234.43,0.00013698,2]
[332827490,1721556639442,-12234.43,0.00013698,2]
[332827491,1721556639451,-12234.43,0.00013698,2]
[332827492,1721556639460,-12234.43,0.00013698,2]
[332827493,1721556639469,-12234.43,0.00013698,2]
[332827494,1721556639479,-12234.43,0.00013698,2]
[332827495,1721556639488,-12234.43,0.00013698,2]
[332827496,1721556639498,-12234.43,0.00013698,2]
[332827497,1721556639507,-12234.43,0.00013698,2]
[332827498,1721556639516,-12234.43,0.00013698,2]
[332827499,1721556639526,-12234.43,0.00013698,2]
[332827500,1721556639536,-12234.43,0.00013698,2]
[332827501,1721556639545,-12234.43,0.00013698,2]
[332827502,1721556639555,-5398.82833808,0.00013698,2]
[332827503,1721556639686,-6835.60166192,0.00013698,2]
[332827504,1721556639695,-12234.43,0.00013698,2]
[332827505,1721556639704,-12234.43,0.00013698,2]
[332827506,1721556639714,-12234.43,0.00013698,2]
[332827507,1721556639723,-12234.43,0.00013698,2]
[332827508,1721556639733,-12234.43,0.00013698,2]
[332827509,1721556639742,-12234.43,0.00013698,2]
[332827510,1721556639751,-12234.43,0.00013698,2]
[332827511,1721556639761,-12234.43,0.00013698,2]
[332827512,1721556639770,-12234.43,0.00013698,2]
[332827513,1721556639780,-12234.5,0.00013698,2]
[332827514,1721556639792,-500.0,0.00013698,2]
[332827515,1721556639801,-500.0,0.00013698,2]
[332827516,1721556639811,-500.88670477,0.00013698,2]
[332827517,1721556639821,-500.0,0.00013698,2]
[332827518,1721556639830,-505.35601644,0.00013698,2]
[332827519,1721556639840,-507.42065107,0.00013698,2]
[332827520,1721556639850,-500.0,0.00013698,2]
[332827521,1721556639859,-500.0,0.00013698,2]
[332827522,1721556639868,-500.0,0.00013698,2]
[332827523,1721556639878,-313.00457431,0.00013698,2]
[332827524,1721556639889,-2105.99,0.00013698,2]
[332827525,1721556639899,-210.19334527,0.00013698,2]
[332827526,1721556639908,-516.98125419,0.00013698,2]
[332827527,1721556639917,-501.93010466,0.00013698,2]
[332827528,1721556639927,-500.0,0.00013698,2]
[332827529,1721556639936,-500.0,0.00013698,2]
[332827530,1721556639947,-500.0,0.00013698,2]
[332827531,1721556639958,-501.47527301,0.00013698,2]
[332827532,1721556639969,-500.0,0.00013698,2]
[332827533,1721556639981,-500.0,0.00013698,2]
[332827534,1721556639992,-500.0,0.00013698,2]
[332827535,1721556640002,-500.0,0.00013698,2]
[332827536,1721556640011,-500.0,0.00013698,2]
[332827541,1721556640021,-762.19,0.00013698,2]
[332827542,1721556640239,-500.0,0.00013698,2]
[332827543,1721556640250,-500.0,0.00013698,2]
[332827544,1721556640259,-500.0,0.00013698,2]
[332827545,1721556640269,-500.0,0.00013698,2]
[332827546,1721556640278,-500.0,0.00013698,2]
[332827547,1721556640288,-500.0,0.00013698,2]
[332827548,1721556640299,-569.25,0.00013698,2]
[332827549,1721556640311,-500.0,0.00013698,2]
[332827550,1721556640321,-500.0,0.00013698,2]
[332827551,1721556640330,-500.0,0.00013698,2]
[332827553,1721556640340,-500.0,0.00013698,2]
[332827554,1721556640349,-500.0,0.00013698,2]
[332827555,1721556640359,-500.0,0.00013698,2]
[332827556,1721556640368,-501.64273887,0.00013698,2]
[332827557,1721556640377,-500.0,0.00013698,2]
[332827558,1721556640388,-510.57627377,0.00013698,2]
[332827559,1721556640399,-1005.26,0.00013698,2]
[332827560,1721556640409,-500.0,0.00013698,2]
[332827561,1721556640419,-500.0,0.00013698,2]
[332827562,1721556640430,-524.52769654,0.00013698,2]
[332827563,1721556640441,-500.0,0.00013698,2]
[332827564,1721556640451,-500.0,0.00013698,2]
[332827566,1721556640462,-536.49,0.00013698,2]
[332827568,1721556640472,-500.0,0.00013698,2]
[332827569,1721556640482,-585.19,0.00013698,2]
[332827571,1721556640493,-500.0,0.00013698,2]
[332827573,1721556640502,-551.49,0.00013698,2]
[332827574,1721556640513,-689.24,0.00013698,2]
[332827576,1721556640522,-500.0,0.00013698,2]
[332827578,1721556640531,-572.99,0.00013698,2]
[332827580,1721556640542,-500.0,0.00013698,2]
[332827582,1721556640552,-500.0,0.00013698,2]
[332827583,1721556640562,-500.0,0.00013698,2]
[332827584,1721556640572,-1356.8,0.00013698,2]
[332827585,1721556640582,-500.0,0.00013698,2]
[332827586,1721556640592,-500.0,0.00013698,2]
[332827587,1721556640602,-500.0,0.00013698,2]
[332827588,1721556640612,-1694.7,0.00013698,2]
[332827589,1721556640621,-500.0,0.00013698,2]
[332827590,1721556640630,-543.68985196,0.00013698,2]
[332827591,1721556640640,-749.19,0.00013698,2]
[332827592,1721556640649,-500.0,0.00013698,2]
[332827593,1721556640659,-509.47,0.00013698,2]
[332827594,1721556640672,-500.0,0.00013698,2]
[332827595,1721556640682,-393.8412689,0.00013698,2]
[332827596,1721556640691,-385.86644807,0.00013698,2]
[332827597,1721556640700,-500.0,0.00013698,2]
[332827598,1721556640711,-1436.1,0.00013698,2]
[332827599,1721556640720,-500.0,0.00013698,2]
[332827600,1721556640730,-500.0,0.00013698,2]
[332827601,1721556640740,-500.0,0.00013698,2]
[332827602,1721556640749,-500.0,0.00013698,2]
[332827603,1721556640759,-709.73,0.00013698,2]
[332827604,1721556640769,-500.0,0.00013698,2]
[332827605,1721556640779,-500.0,0.00013698,2]
[332827606,1721556640788,-541.72015589,0.00013698,2]
[332827607,1721556640797,-500.0,0.00013698,2]
[332827608,1721556640806,-500.0,0.00013698,2]
[332827609,1721556640816,-704.97,0.00013698,2]
[332827610,1721556640827,-500.0,0.00013698,2]
[332827611,1721556640838,-874.58,0.00013698,2]
[332827612,1721556640847,-500.0,0.00013698,2]
[332827613,1721556640858,-511.77010146,0.00013698,2]
[332827614,1721556640866,-500.0,0.00013698,2]
[332827615,1721556640875,-500.0,0.00013698,2]
[332827616,1721556640885,-513.99016088,0.00013698,2]
[332827617,1721556640894,-534.8859518,0.00013698,2]
[332827618,1721556640903,-500.0,0.00013698,2]
[332827619,1721556640913,-500.41966343,0.00013698,2]
[332827620,1721556640922,-500.0,0.00013698,2]
[332827621,1721556640931,-500.0,0.00013698,2]
[332827622,1721556640941,-685.22,0.00013698,2]
[332827624,1721556640950,-500.0,0.00013698,2]
[332827625,1721556640959,-655.13,0.00013698,2]
[332827627,1721556640968,-500.0,0.00013698,2]
[332827628,1721556640977,-500.0,0.00013698,2]
[332827630,1721556640987,-500.0,0.00013698,2]
[332827632,1721556640997,-503.15214971,0.00013698,2]
[332827634,1721556641007,-265.09387023,0.00013698,2]
[332827635,1721556641016,-538.97931944,0.00013698,2]
[332827636,1721556641025,-563.9,0.00013698,2]
[332827637,1721556641036,-548.66,0.00013698,2]
[332827638,1721556641046,-680.32,0.00013698,2]
[332827639,1721556641055,-500.0,0.00013698,2]
[332827640,1721556641064,-550.39,0.00013698,2]